bitfinex-derivatives/quotes_BTCF0:USTF0_20241120
["timestamp","ask_amount","ask_price","bid_price","bid_amount"]
[1732143162726,0.42446466,94169.0,94168.0,0.053051]
[1732143162927,0.41385,94169.0,94168.0,0.053051]
[1732143163416,0.42443988,94169.0,94168.0,0.053051]
[1732143165715,0.053052,94166.0,94165.0,0.0049]
[1732143165923,0.06364188,94166.0,94165.0,0.057953]
[1732143169524,0.06364188,94166.0,94165.0,0.0049]
[1732143170116,0.053052,94166.0,94165.0,0.0049]
[1732143170431,0.06354474,94166.0,94165.0,0.0049]
[1732143171022,0.08034017,94166.0,94165.0,0.0049]
[1732143171716,0.06354474,94166.0,94165.0,0.0049]
[1732143175730,0.06354474,94166.0,94165.0,0.07233646]
[1732143176029,0.06354474,94166.0,94165.0,0.12538946]
[1732143176030,0.053052,94166.0,94165.0,0.12538946]
[1732143176231,0.06346937,94166.0,94165.0,0.12538946]
[1732143176437,0.01041737,94166.0,94165.0,0.12538946]
[1732143180234,0.05305,94170.0,94169.0,0.05305]
[1732143180640,0.06346889,94170.0,94169.0,0.05305]
[1732143181624,0.06348462,94170.0,94169.0,0.05305]
[1732143188928,0.05305,94170.0,94169.0,0.05305]
[1732143189133,0.06344167,94170.0,94169.0,0.05305]
[1732143191937,0.05305,94170.0,94169.0,0.05305]
[1732143192134,0.06340744,94170.0,94169.0,0.05305]
[1732143195233,0.05305,94170.0,94169.0,0.05305]
[1732143195435,0.06340423,94170.0,94169.0,0.05305]
[1732143198637,0.0633884,94170.0,94169.0,0.05305]
[1732143199043,0.01033564,94170.0,94169.0,0.05305]
[1732143200953,0.05630144,94173.0,94172.0,0.053049]
[1732143201134,0.06665552,94173.0,94172.0,0.12048546]
[1732143202539,0.11970352,94173.0,94172.0,0.12048546]
[1732143204048,0.06665552,94173.0,94172.0,0.12048546]
[1732143207854,0.08664,94192.0,94172.0,0.12048546]
[1732143207855,0.36239295,94196.0,94186.0,0.053041]
[1732143208150,0.085337,94195.0,94194.0,0.12047246]
[1732143209451,0.053037,94195.0,94194.0,0.12047246]
[1732143209649,0.36331295,94196.0,94195.0,0.053036]
[1732143209957,0.41443612,94196.0,94195.0,0.053036]
[1732143210754,0.36239295,94196.0,94195.0,0.053036]
[1732143211053,0.00159295,94196.0,94195.0,0.139676]
[1732143214858,0.00159295,94196.0,94195.0,0.458156]
[1732143215763,0.00159295,94196.0,94195.0,1.958156]
[1732143218857,0.1,94200.0,94199.0,0.053034]
[1732143219051,0.1,94200.0,94199.0,0.12047046]
[1732143219563,0.1,94200.0,94199.0,1.62047046]
[1732143225771,0.1,94200.0,94199.0,1.70687046]
[1732143226766,0.1,94200.0,94199.0,1.77430692]
[1732143226965,0.1,94200.0,94199.0,1.70687046]
[1732143227170,0.1,94200.0,94199.0,1.77430692]
[1732143227858,0.1,94200.0,94199.0,1.80510692]
[1732143244878,0.1,94200.0,94199.0,1.77430692]
[1732143246481,0.1,94200.0,94199.0,1.639434]
[1732143246779,0.1,94200.0,94199.0,1.77430692]
[1732143248278,0.1,94200.0,94199.0,1.68790692]
[1732143248482,0.1,94200.0,94199.0,1.77430692]
[1732143249077,0.1,94200.0,94199.0,1.68790692]
[1732143249279,0.1,94200.0,94199.0,1.77430692]
[1732143249668,0.1,94200.0,94199.0,1.639434]
[1732143249874,0.1,94200.0,94199.0,1.77430692]
[1732143250077,0.1,94200.0,94199.0,1.553034]
[1732143250274,0.1,94200.0,94199.0,1.62047046]
[1732143250474,0.1,94200.0,94199.0,1.553034]
[1732143250677,0.16351612,94200.0,94199.0,1.5]
[1732143250880,0.16351612,94200.0,94195.0,0.0049]
[1732143250881,0.053035,94196.0,94195.0,0.07233646]
[1732143251074,0.053036,94194.0,94189.0,0.00911878]
[1732143251383,0.053039,94190.0,94189.0,0.00911878]
[1732143251681,0.053042,94184.0,94183.0,0.15383646]
[1732143251889,0.053042,94184.0,94183.0,0.22127292]
[1732143252085,0.05315133,94184.0,94183.0,0.22127292]
[1732143252285,0.05315133,94184.0,94183.0,0.06743646]
[1732143252486,0.05315133,94184.0,94183.0,0.13487292]
[1732143252990,0.05315133,94184.0,94183.0,0.18791592]
[1732143254281,0.05315133,94184.0,94183.0,0.12047946]
[1732143255292,0.05315133,94184.0,94183.0,0.06743646]
[1732143256791,0.10421381,94184.0,94183.0,0.06743646]
[1732143258188,0.05117181,94184.0,94183.0,0.18791592]
[1732143258378,0.05117181,94184.0,94183.0,0.053043]
[1732143258584,0.05117181,94184.0,94183.0,0.12047946]
[1732143259486,0.05117181,94184.0,94183.0,0.053043]
[1732143259689,0.05117181,94184.0,94183.0,0.12047946]
[1732143266490,0.05117181,94184.0,94183.0,0.053043]
[1732143266699,0.05117181,94184.0,94183.0,0.12047946]
[1732143269498,0.10421381,94184.0,94183.0,0.12047946]
[1732143272891,0.10470055,94184.0,94183.0,0.12047946]
[1732143275298,0.10470055,94184.0,94183.0,0.053043]
[1732143278399,0.11510031,94184.0,94183.0,0.053043]
[1732143279592,0.10470055,94184.0,94183.0,0.053043]
[1732143280093,0.11510142,94184.0,94183.0,0.053043]
[1732143281895,0.11511348,94184.0,94183.0,0.053043]
[1732143291097,0.11512976,94184.0,94183.0,0.053043]
[1732143293500,0.11513489,94184.0,94183.0,0.053043]
[1732143299116,0.05165855,94184.0,94177.0,0.0049]
[1732143299315,0.053045,94179.0,94178.0,0.053045]
[1732143300017,0.0636782,94179.0,94178.0,0.053045]
[1732143302419,0.053046,94177.0,94176.0,0.0006]
[1732143302720,0.053046,94177.0,94172.0,0.0049]
[1732143302721,0.053048,94173.0,94172.0,0.0049]
[1732143302924,0.06363136,94173.0,94172.0,0.053049]
[1732143306125,0.06390858,94173.0,94172.0,0.053049]
[1732143306311,0.11441623,94173.0,94172.0,0.053049]
[1732143307209,0.13185849,94173.0,94172.0,0.053049]
[1732143311117,0.11441623,94173.0,94172.0,0.053049]
[1732143313219,0.10355565,94173.0,94172.0,0.053049]
[1732143313424,0.11447532,94173.0,94172.0,0.053049]
[1732143314927,0.053049,94172.0,94171.0,0.0304]
[1732143315125,0.06396867,94172.0,94171.0,0.0304]
[1732143315617,0.053049,94172.0,94171.0,0.0304]
[1732143317828,0.06420489,94172.0,94171.0,0.0304]
[1732143318424,0.08217334,94172.0,94171.0,0.0304]
[1732143318626,0.06420489,94172.0,94171.0,0.0304]
[1732143327833,0.08205278,94172.0,94171.0,0.0304]
[1732143330331,0.053052,94167.0,94166.0,0.0379]
[1732143330536,0.06420789,94167.0,94166.0,0.033]
[1732143330736,0.08199292,94167.0,94166.0,0.033]
[1732143333238,0.053052,94167.0,94166.0,0.033]
[1732143333537,0.08188177,94167.0,94166.0,0.033]
[1732143333732,0.053052,94167.0,94166.0,0.033]
[1732143334235,0.08188166,94167.0,94166.0,0.033]
[1732143341838,0.08188166,94167.0,94160.0,0.0687]
[1732143341839,0.053055,94161.0,94160.0,0.0687]
[1732143342033,0.44268466,94161.0,94160.0,0.0638]
[1732143342734,0.413855,94161.0,94160.0,0.0638]
[1732143342929,0.44269907,94161.0,94160.0,0.0638]
[1732143343141,0.053056,94160.0,94159.0,7.954e-05]
[1732143343340,0.08190007,94160.0,94159.0,7.954e-05]
[1732143346337,0.0708062,94160.0,94159.0,7.954e-05]
[1732143346539,0.06409479,94160.0,94159.0,7.954e-05]
[1732143346742,0.08175685,94160.0,94159.0,7.954e-05]
[1732143346939,0.44255685,94160.0,94159.0,7.954e-05]
[1732143348734,0.49422595,94160.0,94159.0,7.954e-05]
[1732143349936,0.49424125,94160.0,94159.0,7.954e-05]
[1732143353439,0.49424125,94160.0,94159.0,0.05313554]
[1732143355544,0.13344125,94160.0,94159.0,0.05313554]
[1732143357152,0.14016535,94160.0,94159.0,0.05313554]
[1732143357451,0.13359935,94160.0,94159.0,0.05313554]
[1732143362554,0.13366332,94160.0,94159.0,0.05313554]
[1732143365857,0.1047251,94160.0,94159.0,0.05313554]
[1732143366158,0.12263962,94160.0,94159.0,0.05313554]
[1732143366361,0.1405553,94160.0,94159.0,0.05313554]
[1732143366657,0.13383808,94160.0,94159.0,0.05313554]
[1732143373953,0.13383808,94160.0,94159.0,7.954e-05]
[1732143374549,0.13419558,94160.0,94159.0,7.954e-05]
[1732143376049,0.1342901,94160.0,94159.0,7.954e-05]
[1732143376449,0.1047251,94160.0,94159.0,7.954e-05]
[1732143376855,0.1160962,94160.0,94159.0,7.954e-05]
[1732143377159,0.13428996,94160.0,94159.0,7.954e-05]
[1732143381651,0.1047251,94160.0,94159.0,7.954e-05]
[1732143381851,0.13317924,94160.0,94159.0,7.954e-05]
[1732143386360,0.12205325,94160.0,94159.0,7.954e-05]
[1732143386666,0.1047251,94160.0,94159.0,7.954e-05]
[1732143386865,0.12203302,94160.0,94159.0,7.954e-05]
[1732143387056,0.13285047,94160.0,94159.0,7.954e-05]
[1732143388864,0.13260852,94160.0,94159.0,7.954e-05]
[1732143389269,0.49340852,94160.0,94159.0,7.954e-05]
[1732143393964,0.49316854,94160.0,94159.0,7.954e-05]
[1732143396482,0.49314321,94160.0,94159.0,7.954e-05]
[1732143397171,0.49313762,94160.0,94159.0,7.954e-05]
[1732143400069,0.4655251,94160.0,94159.0,7.954e-05]
[1732143400566,0.49301758,94160.0,94159.0,7.954e-05]
[1732143404464,0.51424195,94160.0,94159.0,7.954e-05]
[1732143405574,0.58167841,94160.0,94159.0,7.954e-05]
[1732143405779,0.56475996,94160.0,94159.0,7.954e-05]
[1732143406468,0.4973235,94160.0,94159.0,7.954e-05]
[1732143406664,0.48674947,94160.0,94159.0,7.954e-05]
[1732143406870,0.49717023,94160.0,94159.0,7.954e-05]
[1732143407068,0.48674947,94160.0,94159.0,7.954e-05]
[1732143407275,0.49717023,94160.0,94159.0,7.954e-05]
[1732143411584,0.48674947,94160.0,94159.0,7.954e-05]
[1732143413282,0.49714253,94160.0,94159.0,7.954e-05]
[1732143413582,0.49714214,94160.0,94159.0,7.954e-05]
[1732143414172,0.48674947,94160.0,94159.0,7.954e-05]
[1732143414374,0.49714233,94160.0,94159.0,7.954e-05]
[1732143414775,0.47591796,94160.0,94159.0,7.954e-05]
[1732143415286,0.42286196,94160.0,94159.0,0.05313554]
[1732143415588,0.053052,94166.0,94165.0,0.053051]
[1732143415792,0.29993646,94173.0,94168.0,0.053051]
[1732143415793,0.2325,94173.0,94168.0,0.053051]
[1732143415978,0.1826,94173.0,94172.0,0.12048546]
[1732143416287,0.1826,94173.0,94172.0,1.70604546]
[1732143416486,0.1826,94173.0,94172.0,2.02460546]
[1732143417196,0.053046,94177.0,94172.0,1.97155646]
[1732143417379,0.053046,94177.0,94176.0,0.053047]
[1732143418190,0.10534054,94177.0,94176.0,0.053047]
[1732143420307,0.10579552,94177.0,94176.0,0.053047]
[1732143421901,0.05274952,94177.0,94176.0,0.053047]
[1732143425710,0.10579552,94177.0,94176.0,0.053047]
[1732143433622,0.00045498,94177.0,94176.0,0.053047]
[1732143434719,0.05350098,94177.0,94176.0,0.053047]
[1732143453722,0.06349074,94177.0,94176.0,0.053047]
[1732143454325,0.05350098,94177.0,94176.0,0.053047]
[1732143454524,0.06349119,94177.0,94176.0,0.053047]
[1732143454731,0.05350098,94177.0,94176.0,0.053047]
[1732143455733,0.00045498,94177.0,94176.0,0.053047]
[1732143460432,0.05350098,94177.0,94176.0,0.053047]
[1732143464132,0.00045498,94177.0,94176.0,0.053047]
[1732143469240,0.05350098,94177.0,94176.0,0.053047]
[1732143480944,0.00045498,94177.0,94176.0,0.053047]
[1732143491844,0.053044,94180.0,94179.0,0.053045]
[1732143494049,0.053044,94180.0,94177.0,0.06743646]
[1732143494050,0.05269685,94181.0,94180.0,0.053044]
[1732143494253,0.05315133,94184.0,94178.0,0.0631]
[1732143494546,0.05315133,94184.0,94183.0,0.053043]
[1732143495547,0.10742901,94184.0,94183.0,0.053043]
[1732143495752,0.05315133,94184.0,94183.0,0.053043]
[1732143506169,0.00010933,94184.0,94183.0,0.20551946]
[1732143506465,0.00010933,94184.0,94183.0,0.65871349]
[1732143506859,0.3608,94198.0,94197.0,0.053035]
[1732143507658,0.42384114,94198.0,94197.0,0.053035]
[1732143509769,0.47793907,94198.0,94197.0,0.053035]
[1732143510369,0.42490507,94198.0,94197.0,0.053035]
[1732143511466,0.06410507,94198.0,94197.0,0.053035]
[1732143511784,0.07414996,94198.0,94197.0,0.053035]
[1732143512068,0.06414282,94198.0,94197.0,0.053035]
[1732143513173,0.01004489,94198.0,94197.0,0.053035]
[1732143513465,0.05307951,94199.0,94198.0,0.053034]
[1732143513673,0.1,94200.0,94198.0,1.553034]
[1732143513969,0.1,94200.0,94199.0,0.053034]
[1732143514869,0.1,94200.0,94199.0,0.083434]
[1732143515465,0.1,94200.0,94199.0,0.168474]
[1732143516068,0.1,94200.0,94199.0,0.138074]
[1732143517170,0.153033,94200.0,94199.0,0.138074]
[1732143525479,0.153033,94200.0,94199.0,0.053034]
[1732143525681,0.153033,94200.0,94199.0,0.138074]
[1732143528875,0.1,94200.0,94199.0,0.138074]
[1732143536292,0.1,94200.0,94199.0,0.20551046]
[1732143536787,0.1,94200.0,94199.0,0.27294692]
[1732143538886,0.1,94200.0,94199.0,0.20551046]
[1732143540188,0.1,94200.0,94199.0,0.30504692]
[1732143540388,0.1,94200.0,94199.0,0.23761046]
[1732143541092,0.1,94200.0,94199.0,0.30504692]
[1732143546387,0.1,94200.0,94199.0,0.23761046]
[1732143547391,0.153033,94200.0,94199.0,0.053034]
[1732143547792,0.053035,94196.0,94195.0,0.00056]
[1732143547989,0.053035,94196.0,94193.0,0.3608]
[1732143547990,0.053036,94194.0,94193.0,0.3109]
[1732143548201,0.053036,94194.0,94184.0,1.8608]
[1732143548202,0.053041,94185.0,94184.0,1.8608]
[1732143548499,0.053041,94185.0,94184.0,1.56743646]
[1732143549200,0.053041,94185.0,94184.0,1.5]
[1732143549798,0.053041,94185.0,94179.0,0.06743646]
[1732143549799,0.053047,94175.0,94174.0,0.12048446]
[1732143554293,0.053047,94175.0,94174.0,0.053048]
[1732143554500,0.053047,94175.0,94174.0,0.12048446]
[1732143563891,0.053047,94175.0,94174.0,0.053048]
[1732143564092,0.053047,94175.0,94174.0,0.12048446]
[1732143565596,0.10529322,94175.0,94174.0,0.12048446]
[1732143566802,0.053049,94171.0,94170.0,1.55361]
[1732143567102,0.053049,94171.0,94170.0,1.55305]
[1732143567601,0.053049,94171.0,94170.0,0.05305]
[1732143574410,0.1056578,94171.0,94170.0,0.05305]
[1732143577316,0.11617394,94171.0,94170.0,0.05305]
[1732143578316,0.1056578,94171.0,94170.0,0.05305]
[1732143578615,0.11617615,94171.0,94170.0,0.05305]
[1732143581818,0.1056578,94171.0,94170.0,0.05305]
[1732143582312,0.1266608,94171.0,94170.0,0.05305]
[1732143584222,0.053051,94168.0,94167.0,1.50056]
[1732143584523,0.06355254,94168.0,94167.0,1.5]
[1732143584713,0.053052,94167.0,94166.0,0.48128846]
[1732143584910,0.06355354,94167.0,94166.0,0.48128846]
[1732143585106,0.053052,94167.0,94166.0,0.12048846]
[1732143585308,0.06355234,94167.0,94166.0,0.12048846]
[1732143586207,0.06355234,94167.0,94166.0,0.053052]
[1732143588416,0.063189,94167.0,94166.0,0.053052]
[1732143589405,0.053052,94167.0,94166.0,0.053052]
[1732143591913,0.0631191,94167.0,94166.0,0.053052]
[1732143592421,0.053052,94167.0,94166.0,0.053052]
[1732143595912,0.053052,94167.0,94162.0,1.50056]
[1732143595913,0.053054,94163.0,94162.0,1.553614]
[1732143596116,0.053054,94163.0,94162.0,1.553054]
[1732143597221,0.053054,94163.0,94162.0,1.89233984]
[1732143598025,0.053054,94163.0,94162.0,2.0098921]
[1732143598216,0.053054,94163.0,94162.0,1.89233984]
[1732143598612,0.053054,94163.0,94162.0,2.0098921]
[1732143598813,0.10511952,94163.0,94162.0,1.67060626]
[1732143599130,0.10511952,94163.0,94162.0,1.553054]
[1732143600431,0.053054,94163.0,94162.0,1.553054]
[1732143602120,0.053054,94163.0,94162.0,1.89327823]
[1732143602324,0.053054,94163.0,94162.0,2.01083049]
[1732143602522,0.053054,94163.0,94162.0,2.0121459]
[1732143603426,0.053054,94163.0,94162.0,1.67060626]
[1732143603623,0.053054,94163.0,94162.0,1.553054]
[1732143603926,0.053054,94163.0,94162.0,1.89459364]
[1732143604316,0.053054,94163.0,94162.0,2.0121459]
[1732143604519,0.053054,94163.0,94162.0,1.67060626]
[1732143604715,0.053054,94163.0,94162.0,1.553054]
[1732143605823,0.053054,94163.0,94162.0,2.0121459]
[1732143606422,0.053054,94163.0,94162.0,1.67060626]
[1732143606624,0.413854,94163.0,94159.0,7.954e-05]
[1732143606828,0.053056,94160.0,94159.0,7.954e-05]
[1732143608630,0.06304938,94160.0,94159.0,7.954e-05]
[1732143610732,0.053056,94160.0,94159.0,7.954e-05]
[1732143610925,0.06317036,94160.0,94159.0,7.954e-05]
[1732143611922,0.053056,94160.0,94159.0,7.954e-05]
[1732143612237,0.06327577,94160.0,94159.0,7.954e-05]
[1732143612531,0.38187577,94160.0,94159.0,7.954e-05]
[1732143612723,0.06743646,94148.0,94138.0,0.09404]
[1732143612930,0.053067,94139.0,94138.0,0.09404]
[1732143613522,0.053069,94136.0,94135.0,0.3608]
[1732143614138,0.06333465,94136.0,94135.0,0.3608]
[1732143614333,0.053069,94136.0,94135.0,0.3608]
[1732143615019,0.054069,94136.0,94135.0,0.3628]
[1732143616031,0.055069,94136.0,94135.0,0.3648]
[1732143619128,0.10886579,94136.0,94135.0,0.3648]
[1732143620534,0.48403325,94136.0,94119.0,0.3608]
[1732143620741,0.053078,94120.0,94119.0,0.3608]
[1732143621131,0.3608,94128.0,94119.0,0.3608]
[1732143621432,0.053075,94125.0,94122.0,0.053077]
[1732143621633,0.053075,94125.0,94123.0,0.053076]
[1732143621836,0.053075,94125.0,94123.0,0.12051246]
[1732143623045,0.053075,94125.0,94123.0,0.06743646]
[1732143623236,0.053075,94125.0,94124.0,0.053076]
[1732143624344,0.054075,94125.0,94124.0,0.053076]
[1732143625043,0.002,94125.0,94124.0,0.053076]
[1732143625252,0.002,94125.0,94124.0,0.12051246]
[1732143626744,0.001,94125.0,94124.0,0.12051246]
[1732143627039,0.002,94125.0,94124.0,0.12051246]
[1732143629444,0.055075,94125.0,94124.0,0.12051246]
[1732143631439,0.055075,94125.0,94124.0,0.053076]
[1732143631833,0.053078,94120.0,94119.0,0.413878]
[1732143632930,0.055076,94125.0,94124.0,0.053076]
[1732143633136,0.054076,94125.0,94124.0,0.053076]
[1732143633442,0.053076,94125.0,94124.0,0.053076]
[1732143633653,0.3608,94136.0,94125.0,0.053075]
[1732143633832,0.3608,94136.0,94135.0,0.05307]
[1732143634036,0.01003753,94135.0,94134.0,0.05307]
[1732143634335,0.053062,94148.0,94147.0,0.053063]
[1732143635245,0.415576,94152.0,94151.0,0.053061]
[1732143635448,0.053776,94152.0,94151.0,0.053061]
[1732143635853,0.00159384,94152.0,94151.0,0.053061]
[1732143636647,0.00259384,94152.0,94151.0,0.053061]
[1732143637149,0.0049,94177.0,94151.0,0.371701]
[1732143637343,0.10493626,94177.0,94159.0,0.413856]
[1732143637538,0.05189026,94177.0,94173.0,0.053048]
[1732143637739,0.05189026,94177.0,94173.0,1.643128]
[1732143637948,0.05189026,94177.0,94176.0,0.053046]
[1732143638246,0.053044,94180.0,94179.0,0.053045]
[1732143638547,0.0523976,94180.0,94159.0,0.418756]
[1732143638747,0.06743646,94184.0,94160.0,1.5]
[1732143638748,0.3608,94169.0,94160.0,1.5]
[1732143638933,0.053053,94166.0,94165.0,0.053052]
[1732143639336,0.3608,94169.0,94168.0,0.053051]
[1732143639748,0.05305,94170.0,94168.0,0.053051]
[1732143640137,0.05305,94170.0,94169.0,0.05305]
[1732143641549,0.05405,94170.0,94169.0,0.05305]
[1732143643835,0.38699646,94170.0,94150.0,0.0049]
[1732143644146,0.053061,94150.0,94146.0,0.053063]
[1732143644345,0.053061,94150.0,94149.0,1.8608]
[1732143644945,0.053061,94150.0,94149.0,0.3608]
[1732143645639,0.053061,94150.0,94149.0,0.3618]
[1732143645640,0.054061,94150.0,94149.0,0.3618]
[1732143646738,0.053061,94150.0,94149.0,0.3608]
[1732143647446,0.054061,94150.0,94149.0,0.3608]
[1732143647639,0.054061,94150.0,94149.0,0.413862]
[1732143652543,0.069061,94150.0,94149.0,0.413862]
[1732143659559,0.016,94150.0,94149.0,0.413862]
[1732143660563,0.3608,94167.0,94166.0,0.053052]
[1732143660865,0.413852,94167.0,94166.0,0.053052]
[1732143661361,0.053052,94167.0,94166.0,0.053052]
[1732143663264,0.00159326,94170.0,94163.0,0.06743646]
[1732143663265,0.00159326,94170.0,94169.0,0.05305]
[1732143664270,0.05464326,94170.0,94169.0,0.05305]
[1732143665359,0.00159326,94170.0,94169.0,0.05305]
[1732143675570,0.053043,94183.0,94182.0,0.053043]
[1732143677362,0.17401215,94189.0,94188.0,0.05304]
[1732143678672,0.05304,94189.0,94188.0,0.05304]
[1732143680966,0.053036,94194.0,94193.0,0.053036]
[1732143681162,0.0316,94198.0,94183.0,0.3608]
[1732143681163,0.05338699,94196.0,94183.0,0.3608]
[1732143681361,0.0304,94207.0,94195.0,0.06743646]
[1732143681362,0.053035,94197.0,94195.0,0.06743646]
[1732143681566,0.053032,94202.0,94199.0,0.053034]
[1732143681771,0.053033,94201.0,94199.0,0.050234]
[1732143682174,0.0304,94207.0,94199.0,0.050234]
[1732143682371,0.153033,94200.0,94199.0,0.050234]
[1732143683574,0.1,94200.0,94199.0,0.050234]
[1732143685076,0.1,94200.0,94199.0,0.411034]
[1732143685267,0.3608,94216.0,94215.0,0.053025]
[1732143685473,0.41407754,94216.0,94215.0,0.053025]
[1732143686980,0.3608,94216.0,94215.0,0.053025]
[1732143690167,0.413824,94216.0,94215.0,0.053025]
[1732143690368,0.053027,94211.0,94210.0,0.053027]
[1732143691774,0.12046346,94211.0,94210.0,0.053027]
[1732143692084,0.053027,94211.0,94210.0,0.053027]
[1732143701893,0.053028,94209.0,94208.0,0.06743646]
[1732143703886,0.053029,94207.0,94206.0,0.140749]
[1732143704592,0.053029,94207.0,94206.0,0.170309]
[1732143707987,0.053029,94207.0,94206.0,0.11728]
[1732143708186,0.053029,94207.0,94206.0,0.02956]
[1732143709591,0.413829,94207.0,94206.0,0.02956]
[1732143710682,0.446129,94207.0,94206.0,0.02956]
[1732143711185,0.81752826,94207.0,94206.0,0.02956]
[1732143713787,0.81752826,94207.0,94206.0,0.01455999]
[1732143714803,0.053036,94195.0,94194.0,1.5]
[1732143714998,0.413836,94195.0,94194.0,1.56743646]
[1732143715498,0.413836,94195.0,94183.0,0.00010345]
[1732143715499,0.053042,94184.0,94183.0,0.00010345]
[1732143715704,0.413842,94184.0,94183.0,0.00010345]
[1732143717490,0.732362,94184.0,94183.0,0.00010345]
[1732143718803,0.732362,94184.0,94163.0,0.0049]
[1732143718804,0.053048,94173.0,94163.0,0.0049]
[1732143718998,0.053062,94149.0,94148.0,0.0049]
[1732143719188,0.053066,94142.0,94141.0,0.06743646]
[1732143719391,0.0333,94148.0,94136.0,0.06743646]
[1732143719589,0.053068,94137.0,94136.0,0.06743646]
[1732143719803,0.05317145,94137.0,94136.0,0.06743646]
[1732143720193,0.05317145,94137.0,94136.0,1.56743646]
[1732143722190,0.05317145,94137.0,94136.0,0.06843646]
[1732143722391,0.05317145,94137.0,94136.0,0.002]
[1732143722804,0.10619734,94137.0,94136.0,0.002]
[1732143723105,0.19391734,94137.0,94136.0,0.002]
[1732143724505,0.19391734,94137.0,94136.0,0.001]
[1732143724806,0.053073,94129.0,94128.0,1.5]
[1732143725105,0.413873,94129.0,94128.0,1.5]
[1732143725707,0.053074,94128.0,94127.0,0.083874]
[1732143727200,0.053074,94128.0,94127.0,0.0308]
[1732143727500,0.053079,94118.0,94117.0,1.5]
[1732143727705,0.053079,94118.0,94107.0,0.053085]
[1732143727895,0.053083,94111.0,94107.0,0.053085]
[1732143728094,0.053083,94111.0,94110.0,1.50012179]
[1732143728699,0.053083,94111.0,94110.0,0.00012179]
[1732143733011,0.10554698,94111.0,94110.0,0.00012179]
[1732143734003,0.19178698,94111.0,94110.0,0.00012179]
[1732143735606,0.053089,94101.0,94098.0,0.05309]
[1732143736399,0.053089,94101.0,94096.0,0.0317]
[1732143736603,0.053089,94101.0,94087.0,1.50056]
[1732143736604,0.15428311,94101.0,94087.0,1.553096]
[1732143736808,0.15428311,94101.0,94087.0,1.5]
[1732143737704,0.053099,94082.0,94081.0,0.0972]
[1732143738102,0.4618696,94085.0,94072.0,1.553105]
[1732143738913,0.4618696,94085.0,94081.0,0.001]
[1732143738914,0.001,94082.0,94081.0,0.001]
[1732143740813,0.08724,94082.0,94081.0,0.001]
[1732143741316,0.08624,94082.0,94072.0,0.001]
[1732143741513,0.001,94082.0,94081.0,0.001]
[1732143741719,0.054099,94082.0,94081.0,0.002]
[1732143743812,0.053099,94082.0,94081.0,0.001]
[1732143744018,0.054099,94082.0,94081.0,0.001]
[1732143744228,0.001,94082.0,94072.0,0.001]
[1732143744405,0.053105,94074.0,94072.0,0.002]
[1732143744610,0.053105,94074.0,94072.0,0.001]
[1732143745208,0.001,94082.0,94081.0,0.001]
[1732143745610,0.054099,94082.0,94081.0,0.001]
[1732143745917,0.053099,94082.0,94081.0,0.001]
[1732143747121,0.053107,94068.0,94066.0,0.03340959]
[1732143747318,0.3608,94067.0,94066.0,0.00010959]
[1732143748314,0.413908,94067.0,94066.0,0.00010959]
[1732143748623,0.413908,94067.0,94039.0,0.08628]
[1732143748624,0.053115,94054.0,94039.0,0.08628]
[1732143748831,0.053119,94047.0,94042.0,0.0642]
[1732143749026,0.413919,94047.0,94042.0,0.0642]
[1732143749215,0.053122,94043.0,94042.0,0.0325]
[1732143750716,0.053126,94035.0,94034.0,0.3608]
[1732143751417,0.08628,94045.0,94034.0,0.3608]
[1732143751622,0.41393236,94047.0,94034.0,0.3608]
[1732143751816,0.41301236,94047.0,94034.0,0.3608]
[1732143752021,0.41301236,94047.0,94042.0,0.001]
[1732143752022,0.053122,94043.0,94042.0,0.001]
[1732143752219,0.1541916,94043.0,94042.0,0.001]
[1732143752720,0.053122,94042.0,94034.0,0.001]
[1732143752917,0.413926,94035.0,94034.0,0.001]
[1732143753112,0.053126,94035.0,94034.0,0.001]
[1732143753518,0.054126,94035.0,94034.0,0.001]
[1732143753827,0.5483,94065.0,94034.0,0.5073896]
[1732143754127,0.00159529,94066.0,94064.0,0.1010696]
[1732143754313,0.00159529,94066.0,94065.0,0.085209]
[1732143754930,0.19014821,94113.0,94065.0,0.085209]
[1732143754931,0.02124613,94076.0,94065.0,0.085209]
[1732143755115,0.00649482,94101.0,94075.0,0.5629392]
[1732143755315,0.00159482,94101.0,94100.0,0.1010696]
[1732143755822,0.36172,94105.0,94100.0,0.4519696]
[1732143756121,0.3608,94113.0,94111.0,0.053083]
[1732143756320,0.00010855,94112.0,94111.0,0.053083]
[1732143757533,0.00010855,94112.0,94109.0,0.08644]
[1732143757836,0.053088,94103.0,94081.0,0.3608]
[1732143758132,0.053094,94091.0,94082.0,0.0049]
[1732143758320,0.053094,94091.0,94071.0,0.1010696]
[1732143758321,0.053106,94072.0,94070.0,0.0049]
[1732143758516,0.3608,94077.0,94071.0,1.5]
[1732143758713,0.3608,94077.0,94063.0,0.08644]
[1732143758714,0.053109,94066.0,94063.0,0.08644]
[1732143758918,0.1010696,94075.0,94062.0,0.3608]
[1732143759119,0.01019586,94074.0,94062.0,0.3608]
[1732143759319,0.1010696,94075.0,94062.0,0.3608]
[1732143759320,0.053108,94068.0,94062.0,0.3608]
[1732143759526,0.01019586,94067.0,94058.0,0.0327]
[1732143759724,0.06330486,94066.0,94058.0,0.0327]
[1732143759930,7.899e-05,94073.0,94058.0,0.0327]
[1732143760130,0.01012574,94072.0,94071.0,0.1010696]
[1732143760317,0.3608,94089.0,94084.0,0.053098]
[1732143761418,0.00170394,94085.0,94084.0,0.053098]
[1732143762430,0.00170394,94085.0,94084.0,0.413898]
[1732143762624,0.00170394,94085.0,94084.0,0.053098]
[1732143766931,0.00170394,94085.0,94084.0,0.139538]
[1732143768331,0.0049,94112.0,94111.0,0.053083]
[1732143768629,0.00159451,94122.0,94121.0,0.053077]
[1732143768838,0.00159451,94122.0,94121.0,1.6541466]
[1732143769228,0.053064,94145.0,94129.0,0.053073]
[1732143769635,0.00058905,94130.0,94129.0,0.053073]
[1732143772421,7.905e-05,94130.0,94129.0,0.053073]
[1732143773832,7.905e-05,94130.0,94129.0,0.732593]
[1732143774032,0.3608,94163.0,94152.0,0.053059]